fUSD/lending_fUSD_20240407
["ID","MTS","AMOUNT","RATE_DAILY","PERIOD"]
[321716964,1712448004085,1900.42,0.00020197,2]
[321716966,1712448044084,250.0,0.00020124,2]
[321716967,1712448055447,156.81,0.00020264,2]
[321716968,1712448055602,156.81,0.0002044,2]
[321716969,1712448147471,-205.84803559,0.00020533,2]
[321716970,1712448147494,-500.0,0.00020544,2]
[321716971,1712448147609,217.45370436,0.00020532,2]
[321716972,1712448173865,-156.81,0.00020616,2]
[321716973,1712448173887,-334.88826005,0.00020677,2]
[321716974,1712448207174,150.0,0.00020219,2]
[321716979,1712448318561,835.59,0.000181,2]
[321716980,1712448318772,835.59,0.00020364,2]
[321716981,1712448319971,500.0,0.00020018,2]
[321716983,1712448422078,328.0,0.00019971,2]
[321716984,1712448557060,242.23,0.00019906,2]
[321716985,1712448590260,1266.61,0.00019906,2]
[321716986,1712448597559,-205.84803559,0.00020687,2]
[321716987,1712448597589,-552.82954974,0.00020688,2]
[321716988,1712448597616,-389.66010723,0.0002069,2]
[321716989,1712448597642,-165.36449417,0.00020692,2]
[321716990,1712448597667,-165.36449417,0.00020722,2]
[321716991,1712448597696,-1855.8596,0.00020734,2]
[321716992,1712448597723,-165.36449417,0.00020751,2]
[321716993,1712448597750,-14928.55670339,0.00020768,2]
[321716994,1712448597772,-165.36449417,0.00020781,2]
[321716995,1712448597795,-156.81,0.00020792,2]
[321716996,1712448597820,-165.36449417,0.00020811,2]
[321716997,1712448597844,-984.3,0.00020811,2]
[321716998,1712448597867,-150.0,0.00020828,2]
[321716999,1712448597890,-12529.4398335,0.00020829,2]
[321717000,1712448597915,-522.35489817,0.00020837,2]
[321717001,1712448597948,-33872.34539188,0.00020838,2]
[321717002,1712448597974,-1951.79805884,0.00020839,2]
[321717003,1712448598000,-3358.89,0.00020839,2]
[321717004,1712448598026,-1227.54,0.00020839,2]
[321717005,1712448598050,-165.36449417,0.00020841,2]
[321717006,1712448598074,-309469.05278716,0.00020867,2]
[321717007,1712448598099,-5718.12032127,0.00020868,2]
[321717008,1712448598122,-165.36449417,0.0002087,2]
[321717009,1712448598146,-2157.02,0.000209,2]
[321717010,1712448598170,-153.11824894,0.000209,2]
[321717011,1712448598195,-6287.48577336,0.000209,2]
[321717012,1712448598217,-165.36449417,0.000209,2]
[321717013,1712448598241,-161.0,0.00020924,2]
[321717014,1712448598264,-416.48,0.00020924,3]
[321717015,1712448598287,-186.06693081,0.0002093,2]
[321717016,1712448598310,-59018.33833512,0.00020933,2]
[321717017,1712448598332,-3220.776,0.00020933,2]
[321717018,1712448598355,-156.81,0.00020968,2]
[321717019,1712448598378,-161.0,0.0002099,2]
[321717020,1712448598403,-161.0,0.0002099,2]
[321717021,1712448598426,-161.0,0.0002099,2]
[321717022,1712448598448,-161.0,0.0002099,2]
[321717023,1712448598471,-177.46028582,0.0002099,2]
[321717024,1712448598494,-338.088864,0.00020998,2]
[321717025,1712448598518,-1450.0,0.00021,3]
[321717026,1712448598541,-147327.98379163,0.00021,2]
[321717027,1712448598564,-544287.73424672,0.00021,2]
[321717028,1712448598585,-1888.070144,0.00021,2]
[321717029,1712448598608,-213.655463,0.00021096,2]
[321717030,1712448598633,-153.11824894,0.000211,2]
[321717031,1712448598658,-162.07,0.000211,2]
[321717032,1712448598681,-162.07,0.000211,2]
[321717033,1712448598704,-156.81,0.00021144,2]
[321717034,1712448598728,-567.11,0.00021178,2]
[321717035,1712448598752,-162.07,0.00021178,2]
[321717036,1712448598775,-162.07,0.00021178,2]
[321717037,1712448598799,-14928.55670333,0.00021227,2]
[321717038,1712448598824,-6287.48577326,0.00021264,2]
[321717039,1712448598847,-153.11824894,0.000213,2]
[321717040,1712448598871,-5718.12032124,0.00021316,2]
[321717041,1712448598897,-156.81,0.0002132,2]
[321717042,1712448598923,-1951.79805879,0.00021416,2]
[321717043,1712448598948,-153.11824894,0.000215,2]
[321717044,1712448598974,-6287.48577326,0.00021627,2]
[321717045,1712448598999,-313.86301489,0.00021646,2]
[321717046,1712448599026,-14928.55670333,0.00021686,2]
[321717047,1712448599050,-162.07,0.00021699,2]
[321717048,1712448599072,-162.07,0.00021699,2]
[321717049,1712448599094,-153.11824894,0.000217,2]
[321717050,1712448599113,-8536.85,0.000217,2]
[321717051,1712448599395,-5718.12032124,0.00021764,2]
[321717052,1712448599418,-128719.1971,0.00021814,2]
[321717053,1712448599439,-1577.69725568,0.00021817,2]
[321717054,1712448599458,-194.190783,0.00021817,2]
[321717055,1712448599477,-1630.90390472,0.00021817,2]
[321717056,1712448599496,-161.0,0.0002187,2]
[321717057,1712448599516,-161.0,0.0002187,2]
[321717058,1712448599536,-161.0,0.0002187,2]
[321717059,1712448599556,-663655.98907703,0.0002188,2]
[321717060,1712448624272,255.49465586,0.00019707,2]
[321717086,1712448632259,-218.28718761,0.00021899,2]
[321717087,1712448632269,-95.03172129,0.000219,2]
[321717088,1712448632314,-58.08652765,0.000219,2]
[321717089,1712448632324,-613.89778121,0.000219,2]
[321717090,1712448632333,-6293.51065254,0.000219,2]
[321717091,1712448632343,-273616.44197465,0.00021912,2]
[321717092,1712448632370,-4050.20192573,0.00021912,2]
[321717174,1712448638600,-388.51829346,0.00021911,2]
[321717175,1712448638610,-991.31100588,0.00021912,2]
[321717177,1712448639594,-17851.973055,0.00021912,2]
[321717178,1712448639811,-342.02312,0.00021912,2]
[321717179,1712448639868,-964.94321326,0.00021912,2]
[321717180,1712448639978,-706261.6841928,0.00021912,2]
[321717181,1712448639988,-192.5145,0.00021913,2]
[321717182,1712448639998,-432.39896177,0.00021914,2]
[321717183,1712448640008,-6415.9360074,0.00021914,2]
[321717184,1712448640019,-500.0,0.00021916,2]
[321717185,1712448640028,-500.0,0.00021916,2]
[321717186,1712448640038,-500.0,0.00021917,2]
[321717187,1712448640048,-171.3788267,0.00021917,2]
[321717188,1712448640057,-165.9245145,0.00021917,2]
[321717189,1712448640066,-500.0,0.00021917,2]
[321717190,1712448640076,-500.0,0.00021917,2]
[321717191,1712448640085,-501.57211865,0.00021917,2]
[321717192,1712448640094,-500.58764348,0.00021917,2]
[321717193,1712448640103,-500.0,0.00021917,2]
[321717194,1712448640114,-430.69946952,0.00021917,2]
[321717196,1712448640123,-519.30360144,0.00021917,2]
[321717198,1712448640132,-500.0,0.00021917,2]
[321717199,1712448640142,-500.0,0.00021917,2]
[321717201,1712448640150,-500.0,0.00021917,2]
[321717203,1712448640159,-512.41118717,0.00021917,2]
[321717206,1712448640170,-500.0,0.00021917,2]
[321717208,1712448640179,-506.41456966,0.00021917,2]
[321717210,1712448640189,-515.48325447,0.00021917,2]
[321717212,1712448640198,-508.95973198,0.00021917,2]
[321717214,1712448640207,-509.41357133,0.00021917,2]
[321717215,1712448640216,-511.34276308,0.00021917,2]
[321717217,1712448640225,-503.36480629,0.00021917,2]
[321717220,1712448640235,-439.90974019,0.00021917,2]
[321717221,1712448640245,-389.30372175,0.00021917,2]
[321717223,1712448640255,-514.34778123,0.00021917,2]
[321717226,1712448640264,-532.06339101,0.00021917,2]
[321717228,1712448640274,-503.45436931,0.00021917,2]
[321717230,1712448640284,-514.27427484,0.00021917,2]
[321717232,1712448640293,-503.89786877,0.00021917,2]
[321717234,1712448640301,-498.95539771,0.00021917,2]
[321717236,1712448640311,-500.45745126,0.00021917,2]
[321717238,1712448640320,-504.85629208,0.00021917,2]
[321717240,1712448640329,-508.03222861,0.00021917,2]
[321717242,1712448640338,-500.0,0.00021917,2]
[321717244,1712448640347,-500.0,0.00021917,2]
[321717246,1712448640356,-500.0,0.00021917,2]
[321717248,1712448640366,-511.67431524,0.00021917,2]
[321717250,1712448640374,-505.88462269,0.00021917,2]
[321717252,1712448640383,-508.24245288,0.00021917,2]
[321717254,1712448640394,-503.23680958,0.00021917,2]
[321717256,1712448640403,-636.35370866,0.00021917,2]
[321717257,1712448640413,-624.06493696,0.00021917,2]
[321717260,1712448640424,-301.47842628,0.00021917,2]
[321717261,1712448640434,-500.0,0.00021917,2]
[321717264,1712448640444,-503.42316051,0.00021917,2]
[321717265,1712448640454,-500.3456635,0.00021917,2]
[321717267,1712448640464,-500.72374706,0.00021917,2]
[321717269,1712448640473,-500.0,0.00021917,2]
[321717271,1712448640483,-642.49,0.00021917,2]
[321717273,1712448640493,-506.83488137,0.00021917,2]
[321717276,1712448640504,-508.99113039,0.00021917,2]
[321717278,1712448640513,-500.0,0.00021917,2]
[321717280,1712448640522,-500.0,0.00021917,2]
[321717282,1712448640531,-202.69276203,0.00021917,2]
[321717284,1712448640541,-500.0,0.00021917,2]
[321717286,1712448640550,-515.38,0.00021917,2]
[321717288,1712448640559,-506.50914261,0.00021917,2]
[321717290,1712448640568,-505.49703581,0.00021917,2]
[321717291,1712448640578,-500.0,0.00021917,2]
[321717293,1712448640587,-491.3,0.00021917,2]
[321717295,1712448640597,-539.27952974,0.00021917,2]
[321717297,1712448640607,-500.0,0.00021917,2]
[321717299,1712448640616,-500.0,0.00021917,2]
[321717301,1712448640626,-500.0,0.00021917,2]
[321717303,1712448640635,-194.65,0.00021917,2]
[321717305,1712448640645,-500.0,0.00021917,2]
[321717307,1712448640655,-500.0,0.00021917,2]
[321717309,1712448640663,-463.76,0.00021917,2]
[321717311,1712448640673,-500.0,0.00021917,2]
[321717313,1712448640683,-407.0,0.00021917,2]
[321717315,1712448640692,-507.29687125,0.00021917,2]
[321717317,1712448640701,-500.0,0.00021917,2]
[321717318,1712448640710,-506.04568076,0.00021917,2]
[321717319,1712448640720,-500.0,0.00021917,2]
[321717320,1712448640729,-506.75455253,0.00021917,2]
[321717321,1712448640738,-512.24803977,0.00021917,2]
[321717322,1712448640748,-500.0,0.00021917,2]
[321717323,1712448640757,-251.74,0.00021917,2]
[321717324,1712448640766,-508.8878883,0.00021917,2]
[321717325,1712448640775,-510.74512708,0.00021917,2]
[321717326,1712448640785,-500.0,0.00021917,2]
[321717327,1712448640794,-536.84,0.00021917,2]
[321717328,1712448640804,-500.0,0.00021917,2]
[321717329,1712448640813,-512.41361485,0.00021917,2]
[321717330,1712448640822,-512.55712231,0.00021917,2]
[321717331,1712448640832,-155.0,0.00021917,2]
[321717332,1712448640841,-511.32892074,0.00021917,2]
[321717333,1712448640850,-519.17578847,0.00021917,2]
[321717334,1712448640859,-535.129379,0.00021917,2]
[321717335,1712448640868,-505.36738697,0.00021917,2]
[321717336,1712448640877,-500.0,0.00021917,2]
[321717337,1712448640886,-504.96306588,0.00021917,2]
[321717338,1712448640895,-500.0,0.00021917,2]
[321717339,1712448640904,-504.57235401,0.00021917,2]
[321717340,1712448640913,-500.0,0.00021917,2]
[321717341,1712448640923,-502.82478375,0.00021917,2]
[321717342,1712448640935,-500.0,0.00021917,2]
[321717343,1712448640944,-500.0,0.00021917,2]
[321717344,1712448640954,-326.84,0.00021917,2]
[321717345,1712448640963,-577.09,0.00021917,2]
[321717346,1712448640973,-500.0,0.00021917,2]
[321717347,1712448640983,-504.5354833,0.00021917,2]
[321717348,1712448640992,-500.0,0.00021917,2]
[321717349,1712448641002,-289.01,0.00021917,2]
[321717350,1712448641011,-537.20754383,0.00021917,2]
[321717351,1712448641021,-500.0,0.00021917,2]
[321717352,1712448641030,-500.0,0.00021917,2]
[321717353,1712448641039,-500.0,0.00021917,2]
[321717354,1712448641048,-486.51,0.00021917,2]
[321717355,1712448641058,-500.0,0.00021917,2]
[321717356,1712448641067,-500.0,0.00021917,2]
[321717357,1712448641076,-439.36,0.00021917,2]
[321717358,1712448641085,-508.56626235,0.00021917,2]
[321717359,1712448641095,-508.05113716,0.00021917,2]
[321717360,1712448641104,-513.36678925,0.00021917,2]
[321717361,1712448641112,-500.0,0.00021917,2]
[321717362,1712448641121,-500.0,0.00021917,2]
[321717363,1712448641131,-309.16,0.00021917,2]
[321717364,1712448641140,-500.0,0.00021917,2]
[321717365,1712448641149,-500.0,0.00021917,2]
[321717366,1712448641158,-503.48932989,0.00021917,2]
[321717367,1712448641167,-299.50279741,0.00021917,2]
[321717368,1712448641184,-500.0,0.00021917,2]
[321717369,1712448641193,-500.0,0.00021917,2]
[321717370,1712448641202,-271.11974648,0.00021917,2]
[321717371,1712448641211,-500.0,0.00021917,2]
[321717372,1712448641221,-376.08,0.00021917,2]
[321717373,1712448641230,-505.58245003,0.00021917,2]
[321717374,1712448641239,-500.0,0.00021917,2]
[321717375,1712448641249,-500.0,0.00021917,2]
[321717376,1712448641257,-404.71,0.00021917,2]
[321717377,1712448641266,-299.19,0.00021917,2]
[321717378,1712448641275,-506.4682166,0.00021917,2]
[321717379,1712448641284,-500.0,0.00021917,2]
[321717380,1712448641293,-332.42,0.00021917,2]
[321717381,1712448641302,-500.0,0.00021917,2]
[321717382,1712448641311,-500.0,0.00021917,2]
[321717383,1712448641320,-500.0,0.00021917,2]
[321717384,1712448641329,-152.07,0.00021917,2]
[321717385,1712448641338,-513.35523433,0.00021917,2]
[321717386,1712448641347,-511.63233014,0.00021917,2]
[321717387,1712448641356,-523.27303289,0.00021917,2]
[321717388,1712448641365,-500.0,0.00021917,2]
[321717389,1712448641374,-500.0,0.00021917,2]
[321717390,1712448641383,-500.0,0.00021917,2]
[321717391,1712448641392,-557.91,0.00021917,2]
[321717392,1712448641401,-500.0,0.00021917,2]
[321717393,1712448641410,-500.0,0.00021917,2]
[321717394,1712448641419,-500.0,0.00021917,2]
[321717395,1712448641430,-525.70090062,0.00021917,2]
[321717396,1712448641439,-592.1,0.00021917,2]
[321717397,1712448641448,-500.0,0.00021917,2]
[321717398,1712448641457,-500.0,0.00021917,2]
[321717399,1712448641466,-358.92,0.00021917,2]
[321717400,1712448641473,-500.0,0.00021917,2]
[321717401,1712448641483,-500.0,0.00021917,2]
[321717402,1712448641492,-275.48420691,0.00021917,2]
[321717403,1712448641502,-581.32463077,0.00021917,2]
[321717404,1712448641511,-500.0,0.00021917,2]
[321717405,1712448641520,-500.0,0.00021917,2]
[321717406,1712448641530,-500.0,0.00021917,2]
[321717407,1712448641541,-156.74021785,0.00021917,2]
[321717408,1712448641550,-578.22058557,0.00021917,2]
[321717409,1712448641559,-500.0,0.00021917,2]
[321717410,1712448641570,-500.0,0.00021917,2]
[321717411,1712448641579,-500.0,0.00021917,2]
[321717412,1712448641589,-373.69,0.00021917,2]
[321717413,1712448641599,-500.0,0.00021917,2]
[321717414,1712448641608,-511.17824454,0.00021917,2]
[321717415,1712448641617,-500.0,0.00021917,2]
[321717416,1712448641627,-500.0,0.00021917,2]
[321717417,1712448641636,-239.47,0.00021917,2]
[321717418,1712448641645,-596.74,0.00021917,2]
[321717419,1712448641653,-500.71358261,0.00021917,2]
[321717420,1712448641662,-500.0,0.00021917,2]
[321717421,1712448641673,-172.28,0.00021917,2]
[321717422,1712448641681,-500.0,0.00021917,2]
[321717423,1712448641690,-500.0,0.00021917,2]
[321717424,1712448641699,-500.0,0.00021917,2]
[321717425,1712448641708,-500.0,0.00021917,2]
[321717426,1712448641718,-528.38,0.00021917,2]
[321717427,1712448641727,-514.19856515,0.00021917,2]
[321717428,1712448641736,-500.0,0.00021917,2]
[321717429,1712448641745,-500.0,0.00021917,2]
[321717430,1712448641754,-500.0,0.00021917,2]
[321717431,1712448641763,-500.0,0.00021917,2]
[321717432,1712448641773,-500.0,0.00021917,2]
[321717433,1712448641782,-583.0,0.00021917,2]
[321717434,1712448641793,-224.87296975,0.00021917,2]
[321717435,1712448641802,-500.0,0.00021917,2]
[321717436,1712448641812,-500.0,0.00021917,2]
[321717437,1712448641821,-500.0,0.00021917,2]
[321717438,1712448641831,-500.0,0.00021917,2]
[321717439,1712448641842,-162.86,0.00021917,2]
[321717440,1712448641851,-500.0,0.00021917,2]
[321717441,1712448641862,-500.0,0.00021917,2]
[321717442,1712448641871,-569.65,0.00021917,2]
[321717443,1712448641883,-500.0,0.00021917,2]
[321717444,1712448641892,-575.29,0.00021917,2]
[321717445,1712448641904,-500.0,0.00021917,2]
[321717446,1712448641913,-313.44943586,0.00021917,2]
[321717447,1712448641923,-500.0,0.00021917,2]
[321717448,1712448641937,-500.0,0.00021917,2]
[321717449,1712448641946,-500.0,0.00021917,2]
[321717450,1712448641958,-383.70722921,0.00021917,2]
[321717451,1712448641969,-500.0,0.00021917,2]
[321717452,1712448641978,-500.0,0.00021917,2]
[321717453,1712448641987,-500.0,0.00021917,2]
[321717454,1712448641997,-527.71571256,0.00021917,2]
[321717455,1712448642009,-511.87111378,0.00021917,2]
[321717456,1712448642019,-500.0,0.00021917,2]
[321717457,1712448642031,-500.0,0.00021917,2]
[321717458,1712448642039,-424.43,0.00021917,2]
[321717459,1712448642049,-500.0,0.00021917,2]
[321717460,1712448642061,-500.0,0.00021917,2]
[321717461,1712448642072,-500.0,0.00021917,2]
[321717462,1712448642081,-500.0,0.00021917,2]
[321717463,1712448642092,-511.7,0.00021917,2]
[321717464,1712448642102,-500.0,0.00021917,2]
[321717465,1712448642112,-500.0,0.00021917,2]
[321717466,1712448642121,-500.0,0.00021917,2]
[321717467,1712448642130,-500.0,0.00021917,2]
[321717468,1712448642139,-500.0,0.00021917,2]
[321717469,1712448642149,-500.0,0.00021917,2]
[321717470,1712448642159,-504.61797997,0.00021917,2]
[321717471,1712448642168,-500.0,0.00021917,2]
[321717472,1712448642179,-500.0,0.00021917,2]
[321717473,1712448642188,-335.41822675,0.00021917,2]
[321717474,1712448642197,-500.0,0.00021917,2]
[321717475,1712448642208,-500.0,0.00021917,2]
[321717476,1712448642217,-500.0,0.00021917,2]
[321717477,1712448642226,-500.0,0.00021917,2]
[321717478,1712448642236,-508.39750912,0.00021917,2]
[321717479,1712448642245,-500.0,0.00021917,2]
[321717480,1712448642255,-500.0,0.00021917,2]
[321717481,1712448642264,-500.0,0.00021917,2]
[321717482,1712448642273,-500.0,0.00021917,2]
[321717483,1712448642282,-500.0,0.00021917,2]
[321717484,1712448642291,-500.0,0.00021917,2]
[321717485,1712448642301,-500.0,0.00021917,2]
[321717486,1712448642310,-366.56,0.00021917,2]
[321717487,1712448642319,-500.0,0.00021917,2]
[321717488,1712448642329,-500.0,0.00021917,2]
[321717490,1712448642338,-500.0,0.00021917,2]
[321717491,1712448642347,-568.95,0.00021917,2]
[321717492,1712448642356,-500.0,0.00021917,2]
[321717494,1712448642365,-500.0,0.00021917,2]
[321717495,1712448642374,-500.0,0.00021917,2]
[321717496,1712448642383,-230.08,0.00021917,2]
[321717497,1712448642394,-500.0,0.00021917,2]
[321717498,1712448642404,-500.0,0.00021917,2]
[321717499,1712448642413,-326.09,0.00021917,2]
[321717500,1712448642423,-500.0,0.00021917,2]
[321717501,1712448642433,-500.0,0.00021917,2]
[321717502,1712448642443,-175.6752983,0.00021917,2]
[321717503,1712448642453,-500.0,0.00021917,2]
[321717504,1712448642464,-500.0,0.00021917,2]
[321717505,1712448642473,-500.0,0.00021917,2]
[321717506,1712448642485,-500.0,0.00021917,2]
[321717507,1712448642494,-500.0,0.00021917,2]
[321717508,1712448642503,-500.0,0.00021917,2]
[321717509,1712448642512,-500.0,0.00021917,2]
[321717510,1712448642521,-500.0,0.00021917,2]
[321717511,1712448642530,-197.55,0.00021917,2]
[321717512,1712448642539,-517.874,0.00021917,2]
[321717513,1712448642548,-171.35,0.00021917,2]
[321717514,1712448642557,-500.0,0.00021917,2]
[321717515,1712448642565,-500.0,0.00021917,2]
[321717516,1712448642574,-208.94,0.00021917,2]
[321717517,1712448642583,-500.0,0.00021917,2]
[321717518,1712448642592,-204.29068208,0.00021917,2]
[321717519,1712448642601,-500.0,0.00021917,2]
[321717520,1712448642610,-500.0,0.00021917,2]
[321717521,1712448642619,-500.0,0.00021917,2]
[321717522,1712448642629,-500.0,0.00021917,2]
[321717523,1712448642638,-604.75519292,0.00021917,2]
[321717524,1712448642647,-500.0,0.00021917,2]
[321717525,1712448642655,-500.0,0.00021917,2]
[321717526,1712448642665,-300.8,0.00021917,2]
[321717527,1712448642675,-500.0,0.00021917,2]
[321717528,1712448642684,-500.0,0.00021917,2]
[321717529,1712448642694,-500.0,0.00021917,2]
[321717530,1712448642702,-500.0,0.00021917,2]
[321717531,1712448642710,-156.28,0.00021917,2]
[321717532,1712448642720,-500.0,0.00021917,2]
[321717533,1712448642728,-500.0,0.00021917,2]
[321717534,1712448642738,-500.0,0.00021917,2]
[321717535,1712448642747,-521.6,0.00021917,2]
[321717536,1712448642756,-500.0,0.00021917,2]
[321717537,1712448642765,-500.0,0.00021917,2]
[321717538,1712448642774,-395.59980706,0.00021917,2]
[321717539,1712448642783,-500.0,0.00021917,2]
[321717540,1712448642792,-500.0,0.00021917,2]
[321717541,1712448642801,-582.56119476,0.00021917,2]
[321717542,1712448642809,-500.0,0.00021917,2]
[321717543,1712448642818,-500.0,0.00021917,2]
[321717544,1712448642828,-500.0,0.00021917,2]
[321717545,1712448642837,-500.0,0.00021917,2]
[321717546,1712448642845,-500.0,0.00021917,2]
[321717547,1712448642854,-358.2,0.00021917,2]
[321717548,1712448642863,-500.0,0.00021917,2]
[321717549,1712448642872,-500.0,0.00021917,2]
[321717550,1712448642881,-441.06,0.00021917,2]
[321717551,1712448642890,-500.0,0.00021917,2]
[321717552,1712448642899,-500.0,0.00021917,2]
[321717553,1712448642908,-500.0,0.00021917,2]
[321717554,1712448642917,-500.0,0.00021917,2]
[321717555,1712448642927,-523.04,0.00021917,2]
[321717556,1712448642940,-523.24284912,0.00021917,2]
[321717557,1712448642949,-500.0,0.00021917,2]
[321717558,1712448642958,-500.0,0.00021917,2]
[321717559,1712448642968,-500.0,0.00021917,2]
[321717560,1712448642978,-284.99,0.00021917,2]
[321717561,1712448642990,-500.0,0.00021917,2]
[321717562,1712448643001,-500.0,0.00021917,2]
[321717563,1712448643012,-500.0,0.00021917,2]
[321717564,1712448643021,-500.0,0.00021917,2]
[321717565,1712448643031,-195.97,0.00021917,2]
[321717566,1712448643040,-500.0,0.00021917,2]
[321717567,1712448643049,-534.52,0.00021917,2]
[321717568,1712448643058,-500.0,0.00021917,2]
[321717569,1712448643068,-518.99,0.00021917,2]
[321717570,1712448643078,-500.0,0.00021917,2]
[321717571,1712448643087,-500.0,0.00021917,2]
[321717572,1712448643096,-500.0,0.00021917,2]
[321717573,1712448643106,-500.0,0.00021917,2]
[321717574,1712448643115,-427.47,0.00021917,2]
[321717575,1712448643125,-500.0,0.00021917,2]
[321717576,1712448643135,-262.43220502,0.00021917,2]
[321717577,1712448643144,-500.0,0.00021917,2]
[321717578,1712448643155,-500.0,0.00021917,2]
[321717579,1712448643324,-173.67,0.00021917,2]
[321717580,1712448643334,-500.0,0.00021917,2]
[321717581,1712448643344,-377.76880243,0.00021917,2]
[321717582,1712448643354,-500.0,0.00021917,2]
[321717583,1712448643363,-636.39,0.00021917,2]
[321717584,1712448643372,-500.0,0.00021917,2]
[321717585,1712448643382,-500.0,0.00021917,2]
[321717586,1712448643392,-500.0,0.00021917,2]
[321717587,1712448643401,-438.46556533,0.00021917,2]
[321717588,1712448643411,-500.0,0.00021917,2]
[321717589,1712448643420,-547.79,0.00021917,2]
[321717590,1712448643431,-339.70939872,0.00021917,2]
[321717591,1712448643439,-500.0,0.00021917,2]
[321717592,1712448643448,-500.0,0.00021917,2]
[321717593,1712448643458,-492.41,0.00021917,2]
[321717594,1712448643468,-395.84,0.00021917,2]
[321717595,1712448643479,-500.0,0.00021917,2]
[321717596,1712448643488,-574.03,0.00021917,2]
[321717597,1712448643498,-500.0,0.00021917,2]
[321717598,1712448643507,-500.0,0.00021917,2]
[321717599,1712448643518,-153.18,0.00021917,2]
[321717600,1712448643528,-500.0,0.00021917,2]
[321717601,1712448643538,-500.0,0.00021917,2]
[321717602,1712448643548,-500.0,0.00021917,2]
[321717603,1712448643557,-500.0,0.00021917,2]
[321717604,1712448643567,-266.95,0.00021917,2]
[321717605,1712448643576,-500.0,0.00021917,2]
[321717606,1712448643585,-382.87,0.00021917,2]
[321717607,1712448643594,-500.0,0.00021917,2]
[321717608,1712448643604,-348.78,0.00021917,2]
[321717609,1712448643613,-500.0,0.00021917,2]
[321717610,1712448643621,-500.0,0.00021917,2]
[321717611,1712448643631,-500.0,0.00021917,2]
[321717612,1712448643640,-500.0,0.00021917,2]
[321717613,1712448643649,-454.95,0.00021917,2]
[321717614,1712448643658,-500.0,0.00021917,2]
[321717615,1712448643667,-500.0,0.00021917,2]
[321717616,1712448643678,-503.97907143,0.00021917,2]
[321717617,1712448643687,-628.0,0.00021917,2]
[321717618,1712448643696,-500.0,0.00021917,2]
[321717619,1712448643704,-500.0,0.00021917,2]
[321717620,1712448643712,-500.0,0.00021917,2]
[321717621,1712448643721,-500.0,0.00021917,2]
[321717622,1712448643731,-500.0,0.00021917,2]
[321717623,1712448643740,-369.43,0.00021917,2]
[321717624,1712448643748,-307.65,0.00021917,2]
[321717625,1712448643757,-500.0,0.00021917,2]
[321717626,1712448643766,-500.0,0.00021917,2]
[321717627,1712448643775,-500.0,0.00021917,2]
[321717628,1712448643784,-500.0,0.00021917,2]
[321717629,1712448643793,-500.0,0.00021917,2]
[321717630,1712448643802,-500.0,0.00021917,2]
[321717631,1712448643811,-255.3,0.00021917,2]
[321717632,1712448643820,-500.0,0.00021917,2]
[321717633,1712448643829,-500.0,0.00021917,2]
[321717634,1712448643837,-500.0,0.00021917,2]
[321717635,1712448643846,-215.8,0.00021917,2]
[321717636,1712448643855,-274.32,0.00021917,2]
[321717637,1712448643864,-526.18,0.00021917,2]
[321717638,1712448643873,-546.77,0.00021917,2]
[321717639,1712448643882,-500.0,0.00021917,2]